bitfinex/quotes_BTCUSD_20240627
["timestamp","ask_amount","ask_price","bid_price","bid_amount"]
[1719464018537,1.60881107,61183.0,61182.0,0.15137485]
[1719464021453,1.60871558,61183.0,61182.0,0.15137485]
[1719464023243,1.63434575,61183.0,61182.0,0.15137485]
[1719464024655,1.19105955,61183.0,61182.0,0.15137485]
[1719464024857,1.30751829,61183.0,61182.0,0.15137485]
[1719464025481,1.10135981,61183.0,61182.0,0.15137485]
[1719464026308,0.93791581,61183.0,61182.0,0.15137485]
[1719464026518,0.39039372,61183.0,61182.0,0.21039584]
[1719464026717,0.48589372,61183.0,61182.0,0.21039584]
[1719464026962,0.48589372,61183.0,61182.0,0.17132513]
[1719464027163,0.48589372,61183.0,61182.0,0.17876909]
[1719464027885,0.46493498,61183.0,61182.0,0.17876909]
[1719464028086,0.48612822,61183.0,61182.0,0.17876909]
[1719464029140,0.48112822,61183.0,61182.0,0.17876909]
[1719464029599,0.48512822,61183.0,61182.0,0.17876909]
[1719464029951,0.48112822,61183.0,61182.0,0.17876909]
[1719464030155,0.48412822,61183.0,61182.0,0.17876909]
[1719464031157,0.48411745,61183.0,61182.0,0.17876909]
[1719464031579,0.38411745,61183.0,61182.0,0.17876909]
[1719464033414,0.38400957,61183.0,61182.0,0.17876909]
[1719464034475,0.36293498,61183.0,61182.0,0.17876909]
[1719464034607,0.38393218,61183.0,61182.0,0.17876909]
[1719464034810,0.38396026,61183.0,61182.0,0.17876909]
[1719464035633,0.38396026,61183.0,61182.0,0.17132513]
[1719464035834,0.38396026,61183.0,61182.0,0.15880269]
[1719464036427,0.38396026,61183.0,61182.0,0.17875297]
[1719464037634,0.36293498,61183.0,61182.0,0.17875297]
[1719464037845,0.38391775,61183.0,61182.0,0.17875297]
[1719464038573,0.35828758,61183.0,61182.0,0.17875297]
[1719464040602,0.33730481,61183.0,61182.0,0.17875297]
[1719464040803,0.26277287,61183.0,61182.0,0.37875297]
[1719464041003,0.2034949,61183.0,61182.0,1.54512741]
[1719464041204,0.007,61183.0,61182.0,1.54512741]
[1719464041632,0.4716,61194.0,61193.0,0.52186728]
[1719464041836,0.4922207,61194.0,61193.0,0.35845028]
[1719464042039,0.4922207,61194.0,61193.0,0.36587478]
[1719464042242,0.4716,61194.0,61193.0,0.36587478]
[1719464044685,0.4716,61194.0,61193.0,0.36987478]
[1719464045007,0.4716,61194.0,61193.0,0.37287478]
[1719464046455,0.13497185,61197.0,61196.0,0.2]
[1719464046719,0.0955,61197.0,61196.0,0.2]
[1719464047011,0.0955,61197.0,61196.0,0.20742437]
[1719464047345,0.0955,61197.0,61196.0,0.22737465]
[1719464048088,0.0965,61197.0,61196.0,0.22737465]
[1719464048927,0.0965,61197.0,61196.0,0.20742437]
[1719464049141,0.259906,61197.0,61196.0,0.20742437]
[1719464049908,0.260746,61197.0,61196.0,0.20742437]
[1719464050109,0.260746,61197.0,61196.0,0.00742437]
[1719464050981,0.260746,61197.0,61196.0,0.02737465]
[1719464051338,0.260746,61197.0,61196.0,0.22737465]
[1719464051760,0.260746,61197.0,61196.0,0.00742437]
[1719464052001,0.260746,61197.0,61196.0,0.20742437]
[1719464052175,0.587559,61197.0,61196.0,0.00742437]
[1719464055001,0.914372,61197.0,61196.0,0.00742437]
[1719464055176,0.326818,61196.0,61193.0,0.15845028]
[1719464055373,0.163414,61194.0,61193.0,0.15845028]
[1719464055579,0.490243,61194.0,61193.0,0.15845028]
[1719464055803,0.51038178,61194.0,61193.0,0.15845028]
[1719464056012,0.490243,61194.0,61193.0,0.15845028]
[1719464056206,0.51071994,61194.0,61193.0,0.15845028]
[1719464056460,0.51071994,61194.0,61193.0,0.15945028]
[1719464057500,0.490243,61194.0,61193.0,0.35945028]
[1719464057757,0.490243,61194.0,61193.0,0.36245028]
[1719464057959,0.490243,61194.0,61193.0,0.16245028]
[1719464058169,0.490243,61194.0,61193.0,0.16145028]
[1719464058544,0.490243,61194.0,61193.0,0.15845028]
[1719464058944,0.491243,61194.0,61193.0,0.15845028]
[1719464060564,0.491243,61194.0,61193.0,0.35845028]
[1719464060770,0.491243,61194.0,61193.0,0.15845028]
[1719464060965,0.491243,61194.0,61193.0,0.35845028]
[1719464061172,0.491243,61194.0,61193.0,0.15845028]
[1719464061346,0.490243,61194.0,61193.0,0.35845028]
[1719464061543,0.491243,61194.0,61193.0,0.15845028]
[1719464062746,0.51150459,61194.0,61193.0,0.15845028]
[1719464063774,0.83833359,61194.0,61193.0,0.01995028]
[1719464064742,0.87679179,61194.0,61193.0,0.01995028]
[1719464064967,0.87679179,61194.0,61193.0,0.02729601]
[1719464065104,0.54996279,61194.0,61193.0,0.16949601]
[1719464065744,0.5297012,61194.0,61193.0,0.16949601]
[1719464065912,0.55005052,61194.0,61193.0,0.16949601]
[1719464066513,0.02134932,61194.0,61193.0,0.40644561]
[1719464066743,0.02134932,61194.0,61193.0,0.44896261]
[1719464067153,0.02034932,61194.0,61193.0,0.44896261]
[1719464067353,0.02134932,61194.0,61193.0,0.44896261]
[1719464067991,0.02034932,61194.0,61193.0,0.41201301]
[1719464068414,0.02034932,61194.0,61193.0,0.41401301]
[1719464068581,0.02034932,61194.0,61193.0,0.41701301]
[1719464068993,0.163412,61195.0,61193.0,0.41701301]
[1719464069194,0.02030756,61194.0,61193.0,0.41701301]
[1719464069798,0.02030756,61194.0,61193.0,0.41401301]
[1719464070171,0.02030756,61194.0,61193.0,0.41201301]
[1719464070718,0.02030756,61194.0,61193.0,0.41301301]
[1719464071133,0.02030756,61194.0,61193.0,0.41201301]
[1719464071344,0.02030756,61194.0,61193.0,0.41301301]
[1719464071491,0.02030756,61194.0,61193.0,0.41401301]
[1719464071921,0.02030756,61194.0,61193.0,0.41701301]
[1719464072355,0.02043781,61194.0,61193.0,0.41701301]
[1719464073421,0.11593781,61194.0,61193.0,0.41701301]
[1719464073779,0.11589119,61194.0,61193.0,0.41701301]
[1719464074189,0.11589119,61194.0,61193.0,0.41501301]
[1719464074389,0.11589119,61194.0,61193.0,0.41201301]
[1719464074590,0.11589119,61194.0,61193.0,0.41401301]
[1719464078621,0.0955,61194.0,61193.0,0.41401301]
[1719464078801,0.11568763,61194.0,61193.0,0.41401301]
[1719464080111,0.27910163,61194.0,61193.0,0.41401301]
[1719464081980,0.2791058,61194.0,61193.0,0.41401301]
[1719464082281,0.258914,61194.0,61193.0,0.21401301]
[1719464082499,0.27911107,61194.0,61193.0,0.14913701]
[1719464082861,0.27995107,61194.0,61193.0,0.14913701]
[1719464083821,0.27995107,61194.0,61193.0,0.34913701]
[1719464084630,0.27995107,61194.0,61193.0,0.34813701]
[1719464084833,0.27995107,61194.0,61193.0,0.35013701]
[1719464085286,0.27993279,61194.0,61193.0,0.35013701]
[1719464085693,0.27993279,61194.0,61193.0,0.35213701]
[1719464088518,0.27993136,61194.0,61193.0,0.35213701]
[1719464089326,0.27993136,61194.0,61193.0,0.15013701]
[1719464090819,0.27993136,61194.0,61193.0,0.15113701]
[1719464091463,0.27993136,61194.0,61193.0,0.15013701]
[1719464091674,0.27993136,61194.0,61193.0,0.15213701]
[1719464092083,0.259754,61194.0,61193.0,0.35213701]
[1719464092286,0.27989682,61194.0,61193.0,0.35213701]
[1719464092891,0.27989682,61194.0,61193.0,0.07573701]
[1719464093552,0.259754,61194.0,61193.0,0.07573701]
[1719464093717,0.27990261,61194.0,61193.0,0.07573701]
[1719464094341,0.27990261,61194.0,61193.0,0.07073701]
[1719464094516,0.27990261,61194.0,61193.0,0.07173701]
[1719464094736,0.27990261,61194.0,61193.0,0.07273701]
[1719464094912,0.259754,61194.0,61193.0,0.07273701]
[1719464095122,0.27991561,61194.0,61193.0,0.07173701]
[1719464095721,0.27991561,61194.0,61193.0,0.07273701]
[1719464096758,0.60674461,61194.0,61193.0,0.07273701]
[1719464098186,0.586583,61194.0,61193.0,0.07273701]
[1719464098394,0.60674585,61194.0,61193.0,0.07273701]
[1719464098771,0.51124585,61194.0,61193.0,0.07273701]
[1719464101088,0.51122255,61194.0,61193.0,0.07273701]
[1719464101280,0.51122255,61194.0,61193.0,0.05278673]
[1719464101505,1.27349515,61194.0,61193.0,0.05278673]
[1719464101706,1.58020116,61194.0,61193.0,0.05278673]
[1719464101962,1.51445932,61194.0,61193.0,0.045441]
[1719464102164,1.6997983,61194.0,61193.0,0.045441]
[1719464102336,1.6997983,61194.0,61193.0,0.043441]
[1719464102930,1.66854415,61194.0,61193.0,0.043441]
[1719464103181,0.35481817,61194.0,61193.0,0.06339128]
[1719464103630,0.35481817,61194.0,61193.0,0.07071661]
[1719464103863,0.593083,61194.0,61193.0,0.07071661]
[1719464104094,0.591083,61194.0,61193.0,0.07071661]
[1719464104355,0.70699704,61194.0,61193.0,0.07071661]
[1719464104580,0.71399704,61194.0,61193.0,0.07071661]
[1719464104830,0.41854794,61194.0,61193.0,0.07071661]
[1719464105063,0.4031339,61194.0,61193.0,0.07171661]
[1719464105289,0.42343516,61194.0,61193.0,0.07171661]
[1719464105521,0.41843516,61194.0,61193.0,0.07071661]
[1719464105749,0.58584916,61194.0,61193.0,0.07071661]
[1719464107155,0.68584916,61194.0,61193.0,0.07071661]
[1719464107384,0.68182309,61194.0,61193.0,0.07071661]
[1719464108086,0.59032309,61194.0,61193.0,0.07071661]
[1719464108297,0.68582309,61194.0,61193.0,0.07071661]
[1719464110882,0.3872289,61194.0,61193.0,0.07071661]
[1719464112130,0.3872289,61194.0,61193.0,0.06071661]
[1719464112333,0.3872289,61194.0,61193.0,0.07071661]
[1719464112746,0.3832289,61194.0,61193.0,0.07071661]
[1719464113103,0.40885479,61194.0,61193.0,0.07071661]
[1719464113714,0.40487141,61194.0,61193.0,0.07071661]
[1719464113901,0.40787141,61194.0,61193.0,0.07071661]
[1719464115054,0.41087141,61194.0,61193.0,0.07071661]
[1719464115971,0.41171141,61194.0,61193.0,0.07071661]
[1719464117503,0.24829741,61194.0,61193.0,0.07071661]
[1719464118192,0.14979741,61194.0,61193.0,0.07071661]
[1719464118350,0.04979741,61194.0,61193.0,0.41621661]
[1719464118558,0.14879741,61194.0,61193.0,0.41621661]
[1719464118957,0.14979741,61194.0,61193.0,0.41621661]
[1719464119988,0.12946589,61194.0,61193.0,0.41621661]
[1719464120194,0.15046575,61194.0,61193.0,0.41621661]
[1719464120400,0.12946589,61194.0,61193.0,0.41621661]
[1719464120600,0.15046575,61194.0,61193.0,0.41621661]
[1719464123783,0.12483986,61194.0,61193.0,0.41621661]
[1719464126487,0.12485642,61194.0,61193.0,0.41621661]
[1719464127254,0.12035642,61194.0,61193.0,0.41621661]
[1719464127453,0.22035642,61194.0,61193.0,0.41621661]
[1719464129474,0.19934,61194.0,61193.0,0.41621661]
[1719464129686,0.11951464,61194.0,61193.0,0.41621661]
[1719464129894,0.19934,61194.0,61193.0,0.41621661]
[1719464130118,0.2195487,61194.0,61193.0,0.41621661]
[1719464132691,0.19934,61194.0,61193.0,0.41621661]
[1719464132899,0.21952351,61194.0,61193.0,0.41621661]
[1719464136144,0.21962496,61194.0,61193.0,0.41621661]
[1719464139221,0.19934,61194.0,61193.0,0.41621661]
[1719464139518,0.11932237,61194.0,61193.0,0.41621661]
[1719464139753,0.21932237,61194.0,61193.0,0.41621661]
[1719464142439,0.21933538,61194.0,61193.0,0.41621661]
[1719464145748,0.02385301,61194.0,61193.0,0.57963361]
[1719464145961,0.02385301,61194.0,61193.0,0.58963361]
[1719464146180,0.02385301,61194.0,61193.0,0.91646761]
[1719464147345,0.02385301,61194.0,61193.0,0.90646761]
[1719464148863,0.00384,61194.0,61193.0,0.90646761]
[1719464149234,0.02398904,61194.0,61193.0,0.90646761]
[1719464152170,0.00384,61194.0,61193.0,0.90646761]
[1719464152599,0.02398095,61194.0,61193.0,0.90646761]
[1719464152773,0.02398095,61194.0,61193.0,0.89914228]
[1719464153552,0.00384,61194.0,61193.0,0.90914228]
[1719464153948,0.02405659,61194.0,61193.0,0.90914228]
[1719464155425,0.00384,61194.0,61193.0,0.90914228]
[1719464157076,0.00384,61194.0,61193.0,1.39831526]
[1719464157244,0.00384,61194.0,61193.0,1.82064926]
[1719464157646,0.00384,61194.0,61193.0,1.72514926]
[1719464158777,0.00084,61194.0,61193.0,1.72514926]
[1719464158984,0.00084,61194.0,61193.0,1.72814926]
[1719464159516,0.00084,61194.0,61193.0,1.73014926]
[1719464161866,0.00084,61194.0,61193.0,1.40331526]
[1719464162068,0.00084,61194.0,61193.0,1.06648126]
[1719464162268,0.00084,61194.0,61193.0,1.07648126]
[1719464162505,0.00084,61194.0,61193.0,1.06648126]
[1719464163301,0.00084,61194.0,61193.0,1.07648126]
[1719464166915,0.00084,61194.0,61193.0,1.40331526]
[1719464167047,0.634971,61210.0,61209.0,0.01995028]
[1719464167258,0.163371,61210.0,61209.0,0.01995028]
[1719464167490,0.18351069,61210.0,61209.0,0.01995028]
[1719464167690,0.18351069,61210.0,61209.0,0.05569531]
[1719464167691,0.163371,61210.0,61209.0,0.05569531]
[1719464167893,0.18350799,61210.0,61209.0,0.05569531]
[1719464168317,0.3242879,61210.0,61209.0,0.05569531]
[1719464168796,0.3242879,61210.0,61209.0,0.05669531]
[1719464168797,0.15477991,61210.0,61209.0,0.05669531]
[1719464169012,0.16097562,61210.0,61209.0,0.05569531]
[1719464169424,0.17497562,61210.0,61209.0,0.05769531]
[1719464169986,0.17197562,61210.0,61209.0,0.05669531]
[1719464170183,0.17197562,61210.0,61209.0,0.05769531]
[1719464170457,0.17497562,61210.0,61209.0,0.05769531]
[1719464170668,0.15477991,61210.0,61209.0,0.05769531]
[1719464170902,0.17496322,61210.0,61209.0,0.05769531]
[1719464172556,0.15477991,61210.0,61209.0,0.05769531]
[1719464173175,0.17486651,61210.0,61209.0,0.05769531]
[1719464173311,0.15477991,61210.0,61209.0,0.05769531]
[1719464173780,0.05927991,61210.0,61209.0,0.05769531]
[1719464182523,0.07918021,61210.0,61209.0,0.05769531]
[1719464184029,0.05927991,61210.0,61209.0,0.05769531]
[1719464184235,0.07938924,61210.0,61209.0,0.05769531]
[1719464187203,0.07938924,61210.0,61209.0,0.03774503]
[1719464187427,0.42624985,61210.0,61209.0,0.002]
[1719464187675,0.42624985,61210.0,61196.0,0.01995028]
[1719464187676,0.0524,61200.0,61196.0,0.01995028]
[1719464187899,0.34712566,61199.0,61196.0,0.01995028]
[1719464188124,0.258906,61197.0,61196.0,0.01995028]
[1719464188300,0.27922866,61197.0,61196.0,0.01995028]
[1719464188863,0.2799285,61197.0,61196.0,0.01995028]
[1719464189207,0.2799285,61197.0,61196.0,0.02495028]
[1719464189432,0.2799285,61197.0,61196.0,0.02295028]
[1719464189662,0.2799285,61197.0,61196.0,0.01995028]
[1719464189809,0.2809285,61197.0,61196.0,0.03295028]
[1719464189981,0.2799285,61197.0,61196.0,0.02695028]
[1719464190393,0.2819285,61197.0,61196.0,0.01995028]
[1719464190589,0.28190687,61197.0,61196.0,0.01995028]
[1719464191556,0.02300087,61197.0,61196.0,0.01995028]
[1719464191915,0.18740687,61197.0,61196.0,0.01995028]
[1719464192116,0.18540133,61197.0,61196.0,0.01995028]
[1719464192388,0.163406,61197.0,61196.0,0.01995028]
[1719464192572,0.164406,61197.0,61196.0,0.01995028]
[1719464193608,0.001,61197.0,61196.0,0.48836287]
[1719464193848,0.001,61197.0,61196.0,0.40705941]
[1719464195101,0.0955,61200.0,61199.0,0.01995028]
[1719464195318,0.0955,61200.0,61199.0,0.21995028]
[1719464195319,0.11679652,61200.0,61199.0,0.21995028]
[1719464195519,0.0955,61200.0,61199.0,0.21995028]
[1719464195748,0.11661042,61200.0,61199.0,0.21995028]
[1719464195904,0.28000842,61200.0,61199.0,0.21995028]
[1719464196754,0.28000842,61200.0,61199.0,0.22095028]
[1719464196968,0.163401,61199.0,61197.0,0.21995028]
[1719464197179,0.11661042,61200.0,61197.0,0.2]
[1719464197180,0.28010565,61198.0,61197.0,0.2]
[1719464197379,0.258904,61198.0,61197.0,0.2]
[1719464197610,0.28025841,61198.0,61197.0,0.2]
[1719464198424,0.258904,61198.0,61197.0,0.2]
[1719464198706,0.28025969,61198.0,61197.0,0.2]
[1719464199159,0.28125969,61198.0,61197.0,0.2]
[1719464199574,0.60806769,61198.0,61197.0,0.2]
[1719464199772,0.60706769,61198.0,61197.0,0.2]
[1719464200214,0.585712,61198.0,61197.0,0.2]
[1719464200411,0.60679401,61198.0,61197.0,0.2]
[1719464200625,0.60779401,61198.0,61197.0,0.2]
[1719464202512,0.60679401,61198.0,61197.0,0.2]
[1719464203033,0.60779401,61198.0,61197.0,0.2]
[1719464203390,0.60777964,61198.0,61197.0,0.2]
[1719464203613,0.60677964,61198.0,61197.0,0.2]
[1719464204393,0.60977964,61198.0,61197.0,0.2]
[1719464204583,0.60977964,61198.0,61197.0,0.21995028]
[1719464205738,0.60677964,61198.0,61197.0,0.21995028]
[1719464205938,0.60977964,61198.0,61197.0,0.21995028]
[1719464206322,0.60877964,61198.0,61197.0,0.21995028]
[1719464206677,0.588712,61198.0,61197.0,0.01995028]
[1719464206840,0.60983881,61198.0,61197.0,0.01995028]
[1719464207058,0.588712,61198.0,61197.0,0.21995028]
[1719464207223,0.61083881,61198.0,61197.0,0.21995028]
[1719464207421,0.60883881,61198.0,61197.0,0.21995028]
[1719464207745,0.51333881,61198.0,61197.0,0.21995028]
[1719464207969,0.60883881,61198.0,61197.0,0.21995028]
[1719464208181,0.60884984,61198.0,61197.0,0.21995028]
[1719464208345,0.51334984,61198.0,61197.0,0.21995028]
[1719464208547,0.60884984,61198.0,61197.0,0.21995028]
[1719464208954,0.60684984,61198.0,61197.0,0.21995028]
[1719464209158,0.60984984,61198.0,61197.0,0.21995028]
[1719464209389,0.60884984,61198.0,61197.0,0.22087428]
[1719464209597,0.51334984,61198.0,61197.0,0.22087428]
[1719464209801,0.60784984,61198.0,61197.0,0.22087428]
[1719464209996,0.60878441,61198.0,61197.0,0.22087428]
[1719464210962,0.60878441,61198.0,61197.0,0.000924]
[1719464213133,1.34330605,61198.0,61197.0,0.000924]
[1719464213360,1.41804295,61198.0,61197.0,0.000924]
[1719464213760,1.39570605,61198.0,61197.0,0.000924]
[1719464213991,1.41834595,61198.0,61197.0,0.002375]
[1719464214210,1.3153679,61198.0,61197.0,0.002375]
[1719464215231,1.35458034,61198.0,61197.0,0.002375]
[1719464216625,1.35465611,61198.0,61197.0,0.002375]
[1719464216972,1.35465589,61198.0,61197.0,0.002375]
[1719464217370,1.32235589,61198.0,61197.0,0.002375]
[1719464217576,1.30225589,61198.0,61197.0,0.002375]
[1719464218036,1.30225776,61198.0,61197.0,0.002375]
[1719464219881,1.3023044,61198.0,61197.0,0.002375]
[1719464222196,1.27954044,61198.0,61197.0,0.002375]
[1719464222509,1.30229487,61198.0,61197.0,0.002375]
[1719464225500,1.30221353,61198.0,61197.0,0.002375]
[1719464225909,1.30224254,61198.0,61197.0,0.002375]
[1719464227523,1.32786585,61198.0,61197.0,0.002375]
[1719464228706,1.32793967,61198.0,61197.0,0.002375]
[1719464228965,0.04939923,61198.0,61197.0,0.24346191]
[1719464229195,0.04939923,61198.0,61197.0,0.36382528]
[1719464231855,0.04985887,61198.0,61197.0,0.36382528]
[1719464235085,0.02662331,61198.0,61197.0,0.36382528]
[1719464235293,0.04988396,61198.0,61197.0,0.36382528]
[1719464235514,0.04988245,61198.0,61197.0,0.36382528]
[1719464236219,0.04888245,61198.0,61197.0,0.343875]
[1719464236790,0.04888245,61198.0,61197.0,0.3989483]
[1719464236938,0.04988245,61198.0,61197.0,0.3989483]
[1719464237139,0.04988245,61198.0,61197.0,0.3999483]
[1719464237342,0.04888245,61198.0,61197.0,0.3999483]
[1719464237555,0.04888245,61198.0,61197.0,0.4009483]
[1719464238180,0.04873798,61198.0,61197.0,0.4009483]
[1719464238849,0.04873798,61198.0,61197.0,0.345875]
[1719464239875,0.04873798,61198.0,61197.0,0.36582528]
[1719464242405,0.04873798,61198.0,61197.0,0.082475]
[1719464242620,0.14423798,61198.0,61197.0,0.02432528]
[1719464242822,0.30764198,61198.0,61197.0,0.02432528]
[1719464243272,0.14423798,61198.0,61197.0,0.02432528]
[1719464244544,0.63414433,61198.0,61197.0,0.014375]
[1719464244697,0.63414433,61198.0,61197.0,0.02432528]
[1719464244904,0.61133531,61198.0,61197.0,0.02432528]
[1719464245099,0.63376877,61198.0,61197.0,0.02432528]
[1719464245499,0.63376877,61198.0,61197.0,0.02332528]
[1719464245820,0.63376877,61198.0,61197.0,0.02232528]
[1719464246015,0.63676877,61198.0,61197.0,0.02232528]
[1719464246423,0.63876877,61198.0,61197.0,0.02232528]
[1719464246800,0.63576877,61198.0,61197.0,0.02232528]
[1719464247001,0.63376877,61198.0,61197.0,0.02232528]
[1719464247206,0.63676877,61198.0,61197.0,0.02232528]
[1719464247711,0.63680135,61198.0,61197.0,0.02232528]
[1719464248310,0.63880135,61198.0,61197.0,0.02232528]
[1719464251067,0.63877841,61198.0,61197.0,0.02232528]
[1719464254308,0.63883676,61198.0,61197.0,0.02232528]
[1719464254522,0.63883676,61198.0,61197.0,0.002375]
[1719464257392,0.61633531,61198.0,61197.0,0.002375]
[1719464257641,0.63895243,61198.0,61197.0,0.002375]
[1719464261027,0.96579946,61198.0,61197.0,0.002375]
[1719464262376,0.98589946,61198.0,61197.0,0.002375]
[1719464263954,0.96324331,61198.0,61197.0,0.002375]
[1719464264168,0.98609048,61198.0,61197.0,0.002375]
[1719464264502,0.9659795,61198.0,61197.0,0.002375]
[1719464265240,0.68145219,61198.0,61197.0,0.002375]
[1719464265440,0.84485619,61198.0,61197.0,0.002375]
[1719464267108,1.17166419,61198.0,61197.0,0.002375]
[1719464267338,1.26710491,61198.0,61197.0,0.002375]
[1719464270510,1.26710513,61198.0,61197.0,0.002375]
[1719464273795,1.26712217,61198.0,61197.0,0.002375]
[1719464274001,1.245168,61198.0,61197.0,0.002375]
[1719464274263,1.26796531,61198.0,61197.0,0.002375]
[1719464275164,1.26797162,61198.0,61197.0,0.002375]
[1719464277080,1.245168,61198.0,61197.0,0.002375]
[1719464277288,1.26800709,61198.0,61197.0,0.002375]
[1719464279544,1.17250709,61198.0,61197.0,0.16162528]
[1719464279759,1.26800709,61198.0,61197.0,0.16162528]
[1719464280320,1.26840724,61198.0,61197.0,0.16162528]
[1719464282175,0.94159924,61198.0,61197.0,0.16162528]
[1719464282329,0.02907924,61198.0,61197.0,0.38213191]
[1719464282543,0.02907924,61198.0,61197.0,0.36162528]
[1719464282799,0.02917,61198.0,61197.0,0.36162528]
[1719464283568,0.02417,61198.0,61197.0,0.36162528]
[1719464283903,0.02517,61198.0,61197.0,0.36162528]
[1719464284316,0.02417,61198.0,61197.0,0.40313191]
[1719464284512,0.02417,61198.0,61197.0,0.40413191]
[1719464284716,0.02417,61198.0,61197.0,0.40513191]
[1719464285381,0.11967,61198.0,61197.0,0.40513191]
[1719464285899,0.09634,61198.0,61197.0,0.40513191]
[1719464286126,0.12017192,61198.0,61197.0,0.40513191]
[1719464289164,0.12023106,61198.0,61197.0,0.40513191]
[1719464292209,0.09634,61198.0,61197.0,0.40513191]
[1719464292416,0.12025101,61198.0,61197.0,0.40513191]
[1719464293957,0.12025334,61198.0,61197.0,0.40513191]
[1719464295515,0.09634,61198.0,61197.0,0.40513191]
[1719464295738,0.1202647,61198.0,61197.0,0.40513191]
[1719464297494,0.653616,61198.0,61197.0,0.02432528]
[1719464297629,0.653616,61198.0,61197.0,0.10112528]
[1719464297630,0.585712,61198.0,61197.0,0.10112528]
[1719464303178,0.0955,61198.0,61197.0,0.30112528]
[1719464303377,0.13729712,61200.0,61199.0,0.16005028]
[1719464304503,0.14029712,61200.0,61199.0,0.16005028]
[1719464304922,0.04779712,61200.0,61199.0,0.19629281]
[1719464305507,0.06920242,61200.0,61199.0,0.19629281]
[1719464305915,0.06620242,61200.0,61199.0,0.19629281]
[1719464306339,0.06820242,61200.0,61199.0,0.19629281]
[1719464306752,0.06620242,61200.0,61199.0,0.19629281]
[1719464306939,0.16170242,61200.0,61199.0,0.19629281]
[1719464307184,0.16054242,61200.0,61199.0,0.19629281]
[1719464307568,0.16254242,61200.0,61199.0,0.19629281]
[1719464308450,0.1625081,61200.0,61199.0,0.19629281]
[1719464308616,0.12852023,61201.0,61199.0,0.19629281]
[1719464308939,0.16942765,61201.0,61200.0,0.03986678]
[1719464309070,0.26492765,61201.0,61200.0,0.03986678]
[1719464310078,0.26692765,61201.0,61200.0,0.03986678]
[1719464310269,0.26492765,61201.0,61200.0,0.03986678]
[1719464310610,0.26692765,61201.0,61200.0,0.03986678]
[1719464311467,0.26992765,61201.0,61200.0,0.03986678]
[1719464311596,0.36992765,61201.0,61200.0,0.03986678]
[1719464311794,0.36992765,61201.0,61199.0,0.16005028]
[1719464311795,0.163398,61200.0,61199.0,0.16005028]
[1719464313089,0.164398,61200.0,61199.0,0.16005028]
[1719464314237,0.166398,61200.0,61199.0,0.16005028]
[1719464316681,0.18580078,61200.0,61199.0,0.16005028]
[1719464318189,0.18615086,61200.0,61199.0,0.16005028]
[1719464318933,0.18515086,61200.0,61199.0,0.19629281]
[1719464319285,0.18615086,61200.0,61199.0,0.19629281]
[1719464319498,0.02275286,61200.0,61199.0,0.19629281]
[1719464319692,0.02175286,61200.0,61199.0,0.19629281]
[1719464319893,0.02175286,61200.0,61199.0,0.39629281]
[1719464320094,0.02275286,61200.0,61199.0,0.36005028]
[1719464320300,0.02275286,61200.0,61199.0,0.62895128]
[1719464320506,0.003,61200.0,61199.0,0.79129026]
[1719464320712,0.002,61200.0,61199.0,1.11809226]
[1719464321539,0.47244,61209.0,61208.0,0.1546]
[1719464321744,0.53065923,61209.0,61208.0,0.36455028]
[1719464322619,0.5105625,61209.0,61208.0,0.36455028]
[1719464322841,0.53058495,61209.0,61208.0,0.40200531]
[1719464323247,0.54058495,61209.0,61208.0,0.40300531]
[1719464323425,0.54358495,61209.0,61208.0,0.40400531]
[1719464323660,0.07198495,61209.0,61208.0,0.40400531]
[1719464325360,0.23535895,61209.0,61208.0,0.33910531]
[1719464325944,0.23535895,61209.0,61208.0,0.31915503]
[1719464326750,0.23535895,61209.0,61208.0,0.33910531]
[1719464326954,0.2609781,61209.0,61208.0,0.31915503]
[1719464327286,0.2609781,61209.0,61208.0,0.33910531]
[1719464327666,0.26125212,61209.0,61208.0,0.33910531]
[1719464329011,0.58800112,61209.0,61208.0,0.02195028]
[1719464329158,0.58800112,61209.0,61208.0,0.002]
[1719464329378,0.68350112,61209.0,61208.0,0.002]
[1719464330985,0.6831368,61209.0,61208.0,0.002]
[1719464331392,0.68313679,61209.0,61208.0,0.002]
[1719464332235,0.66320465,61209.0,61208.0,0.002]
[1719464332448,1.00987949,61209.0,61208.0,0.002]
[1719464334052,1.00987309,61209.0,61208.0,0.002]
[1719464334248,0.98995365,61209.0,61208.0,0.002]
[1719464334495,1.00987309,61209.0,61208.0,0.002]
[1719464337406,0.98995365,61209.0,61208.0,0.002]
[1719464337643,1.00982729,61209.0,61208.0,0.002]
[1719464340525,0.98995365,61209.0,61208.0,0.002]
[1719464340777,1.38895052,61209.0,61208.0,0.002]
[1719464340983,1.36910265,61209.0,61208.0,0.002]
[1719464341182,1.38896767,61209.0,61208.0,0.002]
[1719464342361,1.53603199,61209.0,61208.0,0.002]
[1719464342564,1.38896767,61209.0,61208.0,0.002]
[1719464342787,1.81571667,61209.0,61208.0,0.002]
[1719464342994,2.01310369,61209.0,61208.0,0.002]
[1719464343190,2.12264522,61209.0,61208.0,0.002]
[1719464345806,2.06773216,61209.0,61208.0,0.002]
[1719464349661,2.06885963,61209.0,61208.0,0.002]
[1719464349866,1.78626008,61209.0,61208.0,0.002]
[1719464350019,1.78626008,61209.0,61208.0,0.003]
[1719464350224,1.81188207,61209.0,61208.0,0.003]
[1719464350627,1.97525607,61209.0,61208.0,0.003]
[1719464352476,2.01251081,61209.0,61208.0,0.003]
[1719464352741,1.9252919,61209.0,61208.0,0.003]
[1719464352914,2.01246166,61209.0,61208.0,0.003]
[1719464354455,2.37479537,61209.0,61208.0,0.003]
[1719464354850,2.37479537,61209.0,61208.0,0.002]
[1719464355926,2.08762561,61209.0,61208.0,0.002]
[1719464356104,2.17355345,61209.0,61208.0,0.002]
[1719464359142,2.08762561,61209.0,61208.0,0.002]
[1719464359344,2.01179443,61209.0,61208.0,0.002]
[1719464361417,2.01179443,61209.0,61201.0,0.000924]
[1719464361418,1.176051,61202.0,61201.0,0.000924]
[1719464361652,1.83836477,61202.0,61201.0,0.000924]
[1719464361854,1.77295874,61202.0,61201.0,0.000924]
[1719464362062,1.79595874,61202.0,61201.0,0.000924]
[1719464362469,1.99238066,61202.0,61201.0,0.000924]
[1719464362740,2.16975236,61202.0,61201.0,0.002924]
[1719464364379,2.00438066,61202.0,61201.0,0.002924]
[1719464365614,1.91577598,61202.0,61201.0,0.002924]
[1719464365774,2.00434868,61202.0,61201.0,0.002924]
[1719464367615,2.16962849,61202.0,61201.0,0.002924]
[1719464368041,2.00434868,61202.0,61201.0,0.002924]
[1719464368602,2.16958306,61202.0,61201.0,0.002924]
[1719464368972,2.17018801,61202.0,61201.0,0.002924]
[1719464369352,2.10140446,61202.0,61201.0,0.002924]
[1719464369703,2.1701799,61202.0,61201.0,0.002924]